bitfinex-derivatives/quotes_BTCF0:USTF0_20260118
["timestamp","ask_amount","ask_price","bid_price","bid_amount"]
[1768750610495,0.09472,95087.0,95073.0,0.20894864]
[1768750610695,0.02264666,95086.0,95073.0,0.20894864]
[1768750610894,0.02264666,95085.0,95073.0,0.20894864]
[1768750611095,0.02264666,95084.0,95073.0,0.20894864]
[1768750611291,0.02264666,95083.0,95073.0,0.20894864]
[1768750611495,0.02264666,95082.0,95073.0,0.20894864]
[1768750611800,0.02264666,95081.0,95073.0,0.20894864]
[1768750612102,0.02264666,95080.0,95073.0,0.20894864]
[1768750612301,0.09472,95087.0,95073.0,0.20894864]
[1768750612599,0.02264659,95086.0,95074.0,0.12095909]
[1768750612799,0.02264659,95085.0,95074.0,0.12095909]
[1768750613005,0.02264659,95084.0,95074.0,0.12095909]
[1768750613198,0.02264659,95083.0,95074.0,0.12095909]
[1768750613393,0.02264659,95082.0,95074.0,0.12095909]
[1768750613593,0.02264659,95081.0,95074.0,0.12095909]
[1768750613794,0.02264659,95080.0,95074.0,0.12095909]
[1768750613999,0.09472,95087.0,95074.0,0.12095909]
[1768750614197,0.02264672,95086.0,95074.0,0.12095909]
[1768750614502,0.02264672,95085.0,95074.0,0.12095909]
[1768750614796,0.02264672,95084.0,95074.0,0.12095909]
[1768750615003,0.02264672,95083.0,95074.0,0.12095909]
[1768750615301,0.02264672,95082.0,95076.0,0.010521]
[1768750615505,0.09472,95088.0,95076.0,0.10500993]
[1768750617400,0.00231363,95089.0,95076.0,0.10500993]
[1768750617597,0.09472,95088.0,95076.0,0.10500993]
[1768750618798,0.10527422,95086.0,95070.0,0.20492702]
[1768750619007,0.09472,95095.0,95081.0,0.10500893]
[1768750619300,0.10153685,95104.0,95088.0,0.01052]
[1768750619301,0.09472,95098.0,95088.0,0.01052]
[1768750619696,0.00231326,95104.0,95092.0,0.09448893]
[1768750619901,0.03,95104.0,95096.0,0.010519]
[1768750620411,0.03,95104.0,95092.0,0.10500793]
[1768750620911,0.03,95104.0,95095.0,0.20492702]
[1768750621118,0.09472,95108.0,95098.0,0.010519]
[1768750622198,0.09472,95108.0,95095.0,0.20492702]
[1768750622400,0.09472,95108.0,95096.0,0.010519]
[1768750622601,0.00231315,95109.0,95099.0,0.11043809]
[1768750622802,0.10527422,95120.0,95103.0,0.20492702]
[1768750623002,0.10527422,95113.0,95103.0,0.20492702]
[1768750623204,0.12527422,95113.0,95103.0,0.20492702]
[1768750623400,0.12527422,95113.0,95103.0,0.09448893]
[1768750624514,0.12527422,95113.0,95099.0,0.11043809]
[1768750624713,0.10527422,95110.0,95099.0,0.11043809]
[1768750630209,0.11477203,95118.0,95099.0,0.11043809]
[1768750630408,0.02201562,95117.0,95099.0,0.11043809]
[1768750630608,0.02201562,95116.0,95099.0,0.11043809]
[1768750630905,0.05201562,95116.0,95099.0,0.11043809]
[1768750631108,0.02201562,95115.0,95099.0,0.11043809]
[1768750631308,0.03,95115.0,95099.0,0.11043809]
[1768750632509,0.03,95115.0,95099.0,0.12095709]
[1768750636220,0.10527422,95110.0,95099.0,0.11043809]
[1768750637520,0.10527422,95110.0,95098.0,0.09448893]
[1768750638023,0.10527422,95110.0,95099.0,0.010519]
[1768750638316,0.10527422,95110.0,95098.0,0.09448893]
[1768750639222,0.10527422,95110.0,95098.0,0.10500793]
[1768750639721,0.10527422,95110.0,95100.0,0.010518]
[1768750640516,0.10527422,95110.0,95102.0,0.010518]
[1768750640716,0.10527422,95112.0,95102.0,0.010518]
[1768750640926,0.09468,95117.0,95102.0,0.010518]
[1768750641116,0.1167019,95116.0,95102.0,0.010518]
[1768750641423,0.0220219,95115.0,95102.0,0.010518]
[1768750641614,0.0420219,95115.0,95102.0,0.010518]
[1768750641919,0.0220219,95114.0,95102.0,0.010518]
[1768750642421,0.09468,95116.0,95102.0,0.010518]
[1768750642622,0.0220284,95115.0,95102.0,0.010518]
[1768750642922,0.0220284,95114.0,95104.0,0.010518]
[1768750643218,0.0220284,95114.0,95106.0,0.010518]
[1768750643421,0.0220284,95113.0,95106.0,0.010518]
[1768750643623,0.09468,95116.0,95106.0,0.010518]
[1768750643922,0.02203359,95115.0,95106.0,0.010518]
[1768750644116,0.02203359,95114.0,95106.0,0.010518]
[1768750644324,0.02203359,95113.0,95106.0,0.010518]
[1768750644521,0.09468,95116.0,95106.0,0.010518]
[1768750644722,0.02203857,95115.0,95106.0,0.010518]
[1768750644922,0.02203857,95114.0,95106.0,0.010518]
[1768750645120,0.09468,95116.0,95106.0,0.010518]
[1768750645121,0.02203857,95113.0,95106.0,0.010518]
[1768750645318,0.09468,95116.0,95106.0,0.010518]
[1768750645524,0.13468,95116.0,95106.0,0.010518]
[1768750648732,0.13468,95116.0,95103.0,0.010518]
[1768750650329,0.13468,95116.0,95101.0,0.11014778]
[1768750650330,0.13468,95116.0,95100.0,0.010518]
[1768750650721,0.04,95116.0,95098.0,0.11014778]
[1768750651026,0.10527422,95110.0,95098.0,0.11014778]
[1768750651227,0.21437932,95118.0,95098.0,0.12066678]
[1768750651432,0.24437932,95118.0,95098.0,0.12066678]
[1768750657335,0.02198748,95117.0,95100.0,0.010518]
[1768750657534,0.02198748,95116.0,95100.0,0.010518]
[1768750657838,0.05198748,95116.0,95100.0,0.010518]
[1768750658038,0.02198748,95115.0,95100.0,0.010518]
[1768750658337,0.05198748,95115.0,95100.0,0.010518]
[1768750658537,0.02198748,95114.0,95100.0,0.11579222]
[1768750658836,0.05198748,95114.0,95100.0,0.11579222]
[1768750659036,0.02198748,95113.0,95100.0,0.11579222]
[1768750659337,0.03198748,95113.0,95100.0,0.11579222]
[1768750659539,0.02198748,95112.0,95100.0,0.11579222]
[1768750659738,0.02198748,95112.0,95102.0,0.010518]
[1768750659939,0.02198748,95111.0,95102.0,0.010518]
[1768750660131,0.02198748,95110.0,95102.0,0.010518]
[1768750660332,0.02198748,95109.0,95104.0,0.010518]
[1768750660642,0.21437932,95118.0,95104.0,0.010518]
[1768750660945,0.24437932,95118.0,95104.0,0.010518]
[1768750662640,0.24437932,95118.0,95107.0,0.010518]
[1768750662838,0.24437932,95118.0,95101.0,0.11498689]
[1768750662839,0.12468,95118.0,95101.0,0.11498689]
[1768750663043,0.12468,95118.0,95101.0,0.20683274]
[1768750663342,0.12468,95118.0,95109.0,0.010517]
[1768750663642,0.12468,95118.0,95106.0,0.010518]
[1768750665141,0.00015777,95122.0,95108.0,0.11579222]
[1768750665443,0.10527422,95120.0,95105.0,0.16870074]
[1768750665641,0.14527422,95120.0,95105.0,0.16870074]
[1768750665946,0.14527422,95120.0,95101.0,0.10415489]
[1768750666348,0.14527422,95120.0,95105.0,0.010518]
[1768750666647,0.14527422,95120.0,95102.0,0.010518]
[1768750670042,0.14527422,95120.0,95104.0,0.010518]
[1768750671339,0.04,95120.0,95106.0,0.010518]
[1768750671539,0.04,95120.0,95108.0,0.010517]
[1768750672643,0.02187794,95119.0,95108.0,0.010517]
[1768750672951,0.02187794,95118.0,95105.0,0.11498689]
[1768750673254,0.02187794,95117.0,95105.0,0.11498689]
[1768750673741,0.02187794,95116.0,95105.0,0.11498689]
[1768750673941,0.00015777,95122.0,95105.0,0.11498689]
[1768750673942,0.02187794,95115.0,95105.0,0.11498689]
[1768750674141,0.00015777,95122.0,95105.0,0.11498689]
[1768750674351,0.10527422,95120.0,95105.0,0.11498689]
[1768750674549,0.02187622,95119.0,95106.0,0.010518]
[1768750674741,0.02187622,95118.0,95108.0,0.010517]
[1768750674947,0.02187622,95117.0,95108.0,0.010517]
[1768750675250,0.02187622,95116.0,95108.0,0.010517]
[1768750675446,0.02187622,95115.0,95108.0,0.010517]
[1768750675750,0.10527422,95120.0,95108.0,0.010517]
[1768750676051,0.02187536,95119.0,95108.0,0.010517]
[1768750676244,0.02187536,95118.0,95108.0,0.010517]
[1768750676445,0.02187536,95117.0,95108.0,0.010517]
[1768750676643,0.02187536,95116.0,95104.0,0.010518]
[1768750676845,0.02187536,95115.0,95104.0,0.010518]
[1768750677146,0.10527422,95120.0,95104.0,0.010518]
[1768750677450,0.02187469,95119.0,95104.0,0.010518]
[1768750677650,0.02187469,95118.0,95104.0,0.010518]
[1768750677955,0.02187469,95118.0,95103.0,0.09184585]
[1768750678250,0.02187469,95117.0,95103.0,0.09184585]
[1768750678459,0.02187469,95116.0,95103.0,0.09184585]
[1768750678652,0.02187469,95115.0,95103.0,0.09184585]
[1768750678949,0.00015777,95122.0,95103.0,0.09184585]
[1768750679148,0.02187445,95121.0,95103.0,0.09184585]
[1768750679452,0.02187445,95120.0,95103.0,0.09184585]
[1768750679644,0.02187445,95119.0,95103.0,0.09184585]
[1768750679846,0.02187445,95118.0,95103.0,0.09184585]
[1768750680045,0.02187445,95117.0,95103.0,0.09184585]
[1768750680347,0.02187445,95116.0,95103.0,0.10236385]
[1768750680654,0.02187445,95115.0,95103.0,0.10236385]
[1768750680854,0.00015777,95122.0,95105.0,0.010518]
[1768750681064,0.02187439,95121.0,95105.0,0.010518]
[1768750681246,0.02187439,95120.0,95105.0,0.010518]
[1768750681449,0.06187439,95120.0,95105.0,0.010518]
[1768750681649,0.02187439,95119.0,95105.0,0.010518]
[1768750681850,0.04187439,95119.0,95105.0,0.010518]
[1768750682158,0.02187439,95118.0,95105.0,0.010518]
[1768750682658,0.02187439,95117.0,95103.0,0.09184585]
[1768750682855,0.02187439,95116.0,95104.0,0.11102817]
[1768750683056,0.02187439,95115.0,95104.0,0.11102817]
[1768750683258,0.00015777,95122.0,95106.0,0.010518]
[1768750683457,0.02187525,95121.0,95106.0,0.010518]
[1768750683650,0.02187525,95120.0,95106.0,0.010518]
[1768750683946,0.02187525,95119.0,95106.0,0.010518]
[1768750684146,0.02187525,95118.0,95106.0,0.010518]
[1768750684362,0.02187525,95117.0,95106.0,0.010518]
[1768750684658,0.02187525,95116.0,95106.0,0.010518]
[1768750684858,0.00015777,95122.0,95106.0,0.010518]
[1768750684859,0.02187525,95115.0,95106.0,0.010518]
[1768750685057,0.00015777,95122.0,95106.0,0.010518]
[1768750685259,0.02182868,95121.0,95106.0,0.010518]
[1768750685560,0.02182868,95120.0,95106.0,0.010518]
[1768750685765,0.06182868,95120.0,95106.0,0.010518]
[1768750685965,0.02182868,95119.0,95106.0,0.010518]
[1768750686166,0.05182868,95119.0,95106.0,0.010518]
[1768750686354,0.02182868,95118.0,95106.0,0.010518]
[1768750686554,0.02182868,95118.0,95104.0,0.11102817]
[1768750686755,0.02182868,95117.0,95104.0,0.11102817]
[1768750686969,0.02182868,95116.0,95104.0,0.11102817]
[1768750687159,0.02182868,95115.0,95104.0,0.11102817]
[1768750687358,0.02182868,95114.0,95104.0,0.11102817]
[1768750687561,0.00015777,95122.0,95104.0,0.11102817]
[1768750687861,0.02183065,95121.0,95104.0,0.11102817]
[1768750688055,0.02183065,95120.0,95104.0,0.11102817]
[1768750688255,0.06183065,95120.0,95104.0,0.11102817]
[1768750688457,0.02183065,95119.0,95104.0,0.11102817]
[1768750688655,0.04183065,95119.0,95104.0,0.11102817]
[1768750688856,0.02183065,95118.0,95104.0,0.11102817]
[1768750689362,0.02183065,95117.0,95105.0,0.010518]
[1768750689562,0.02183065,95116.0,95105.0,0.010518]
[1768750689763,0.02183065,95115.0,95105.0,0.010518]
[1768750689966,0.00015777,95122.0,95108.0,0.21841921]
[1768750690168,0.00015777,95122.0,95109.0,0.11102817]
[1768750690169,0.03015777,95122.0,95109.0,0.11102817]
[1768750690870,0.03015777,95122.0,95110.0,0.010517]
[1768750700372,0.03015777,95122.0,95108.0,0.09687404]
[1768750700675,0.03015777,95122.0,95112.0,0.010517]
[1768750701176,0.03015777,95122.0,95108.0,0.09687404]
[1768750701473,0.03015777,95122.0,95112.0,0.010517]
[1768750701978,0.02174842,95121.0,95112.0,0.010517]
[1768750702168,0.02174842,95120.0,95112.0,0.010517]
[1768750702367,0.02174842,95119.0,95112.0,0.010517]
[1768750702570,0.02174842,95118.0,95112.0,0.010517]
[1768750702769,0.02174842,95117.0,95112.0,0.010517]
[1768750702978,0.00015777,95122.0,95112.0,0.010517]
[1768750703179,0.0217475,95121.0,95112.0,0.010517]
[1768750703379,0.00015777,95122.0,95112.0,0.010517]
[1768750703380,0.0217475,95120.0,95112.0,0.010517]
[1768750703580,0.0217475,95119.0,95112.0,0.010517]
[1768750703782,0.0217475,95118.0,95112.0,0.010517]
[1768750704083,0.0217475,95117.0,95112.0,0.010517]
[1768750704283,0.00015777,95122.0,95112.0,0.010517]
[1768750704579,0.02174616,95121.0,95112.0,0.010517]
[1768750704769,0.02174616,95120.0,95112.0,0.010517]
[1768750704971,0.02174616,95119.0,95112.0,0.010517]
[1768750705174,0.02174616,95118.0,95112.0,0.010517]
[1768750705375,0.02174616,95117.0,95112.0,0.010517]
[1768750705585,0.00015777,95122.0,95112.0,0.010517]
[1768750705885,0.02174558,95121.0,95108.0,0.09687404]
[1768750706183,0.02174558,95120.0,95108.0,0.09687404]
[1768750706385,0.02174558,95119.0,95106.0,0.11118594]
[1768750706584,0.02174558,95118.0,95106.0,0.11118594]
[1768750706783,0.02174558,95117.0,95106.0,0.11118594]
[1768750706983,0.00015777,95122.0,95106.0,0.11118594]
[1768750707283,0.02174521,95121.0,95106.0,0.12170394]
[1768750707585,0.02174521,95120.0,95106.0,0.12170394]
[1768750707775,0.02174521,95119.0,95106.0,0.12170394]
[1768750707975,0.02174521,95118.0,95106.0,0.12170394]
[1768750708177,0.02174521,95117.0,95106.0,0.12170394]
[1768750708378,0.00015777,95122.0,95106.0,0.12170394]
[1768750708675,0.02174499,95121.0,95106.0,0.12170394]
[1768750708982,0.02174499,95120.0,95106.0,0.12170394]
[1768750709284,0.02174499,95119.0,95106.0,0.12170394]
[1768750709483,0.02174499,95118.0,95106.0,0.12170394]
[1768750709684,0.02174499,95117.0,95106.0,0.12170394]
[1768750709886,0.00015777,95122.0,95106.0,0.12170394]
[1768750710086,0.0217449,95121.0,95108.0,0.010517]
[1768750710384,0.0217449,95120.0,95108.0,0.010517]
[1768750710577,0.0217449,95119.0,95110.0,0.010517]
[1768750710778,0.0217449,95118.0,95110.0,0.010517]
[1768750710985,0.0217449,95117.0,95110.0,0.010517]
[1768750711191,0.00015777,95122.0,95110.0,0.010517]
[1768750711385,0.021745,95121.0,95110.0,0.010517]
[1768750711586,0.021745,95120.0,95110.0,0.010517]
[1768750711787,0.021745,95119.0,95110.0,0.010517]
[1768750712083,0.021745,95118.0,95110.0,0.010517]
[1768750712383,0.00231277,95124.0,95111.0,0.03847104]
[1768750712590,0.03231277,95124.0,95111.0,0.03847104]
[1768750712902,0.03231277,95124.0,95109.0,0.09913669]
[1768750713573,0.10857639,95123.0,95106.0,0.01067577]
[1768750714290,0.24518313,95123.0,95106.0,0.00015777]
[1768750714486,0.20518313,95122.0,95106.0,0.00015777]
[1768750714887,0.10857639,95121.0,95106.0,0.00015777]
[1768750716297,0.09660674,95122.0,95106.0,0.00015777]
[1768750716497,0.11700605,95124.0,95106.0,0.00015777]
[1768750716694,0.13700605,95124.0,95106.0,0.00015777]
[1768750718092,0.2316006,95124.0,95106.0,0.00015777]
[1768750719202,0.11469328,95123.0,95106.0,0.00015777]
[1768750720896,0.11469328,95122.0,95106.0,0.00015777]
[1768750726109,0.20928783,95123.0,95106.0,0.01067577]
[1768750726518,0.20928783,95123.0,95103.0,0.05758613]
[1768750727402,0.20928783,95123.0,95106.0,0.010518]
[1768750727602,0.00231277,95124.0,95101.0,0.03785941]
[1768750727603,0.11469328,95121.0,95101.0,0.03785941]
[1768750727802,0.11469328,95120.0,95101.0,0.03785941]
[1768750729509,0.11469328,95120.0,95104.0,0.010518]
[1768750729914,0.11469328,95120.0,95101.0,0.04837741]
[1768750730710,0.11469328,95120.0,95101.0,0.03785941]
[1768750731409,0.13597418,95119.0,95100.0,0.21604705]
[1768750731613,0.0212809,95118.0,95100.0,0.21604705]
[1768750731916,0.0212809,95118.0,95101.0,0.010518]
[1768750732211,0.0212809,95118.0,95100.0,0.21604705]
[1768750732212,0.0212809,95118.0,95103.0,0.010518]
[1768750732413,0.0212809,95118.0,95106.0,0.010518]
[1768750734003,0.0212809,95118.0,95106.0,0.009468]
[1768750734203,0.0212809,95118.0,95103.0,0.010518]
[1768750741723,0.0212809,95118.0,95105.0,0.010518]
[1768750743020,0.0212809,95118.0,95102.0,0.105198]
[1768750743927,0.13223204,95118.0,95102.0,0.105198]
[1768750744115,0.11095114,95117.0,95102.0,0.105198]
[1768750745025,0.11095114,95117.0,95102.0,0.09468]
[1768750745225,0.11095114,95116.0,95102.0,0.09468]
[1768750747329,0.11095114,95116.0,95103.0,0.010518]
[1768750749130,0.09419303,95117.0,95103.0,0.010518]
[1768750749428,0.21614255,95120.0,95103.0,0.010518]
[1768750749631,0.02134383,95119.0,95103.0,0.010518]
[1768750749833,0.02134383,95118.0,95103.0,0.010518]
[1768750750131,0.21614255,95120.0,95103.0,0.010518]
[1768750750320,0.02134382,95119.0,95103.0,0.010518]
[1768750750519,0.02134382,95118.0,95103.0,0.010518]
[1768750750720,0.21614255,95120.0,95106.0,0.010518]
[1768750750920,0.02134389,95119.0,95106.0,0.010518]
[1768750751125,0.02134389,95118.0,95106.0,0.010518]
[1768750751433,0.21614255,95120.0,95106.0,0.010518]
[1768750751736,0.02134391,95119.0,95110.0,0.10519141]
[1768750751935,0.02134391,95118.0,95103.0,0.11545441]
[1768750752126,0.09419303,95122.0,95109.0,0.10519141]
[1768750752323,0.02134379,95121.0,95109.0,0.10519141]
[1768750752525,0.02134379,95120.0,95109.0,0.10519141]
[1768750752824,0.02134379,95119.0,95109.0,0.10519141]
[1768750753024,0.09419303,95122.0,95109.0,0.10519141]
[1768750753025,0.02134379,95118.0,95109.0,0.10519141]
[1768750753220,0.09419303,95122.0,95109.0,0.10519141]
[1768750753424,0.02134355,95121.0,95109.0,0.11570841]
[1768750753633,0.02134355,95120.0,95109.0,0.11570841]
[1768750753831,0.02134355,95119.0,95109.0,0.010517]
[1768750754030,0.02134355,95118.0,95109.0,0.10519141]
[1768750754334,0.09419303,95122.0,95109.0,0.10519141]
[1768750754527,0.02134343,95121.0,95109.0,0.10519141]
[1768750754726,0.02134343,95120.0,95109.0,0.10519141]
[1768750754926,0.02134343,95119.0,95109.0,0.10519141]
[1768750755234,0.02134343,95118.0,95107.0,0.010518]
[1768750755434,0.09419303,95122.0,95108.0,0.10519141]
[1768750755635,0.02134336,95121.0,95110.0,0.10519141]
[1768750755934,0.02134336,95120.0,95110.0,0.10519141]
[1768750756134,0.09419303,95122.0,95107.0,0.010518]
[1768750756135,0.02134336,95119.0,95107.0,0.010518]
[1768750756435,0.02134336,95118.0,95109.0,0.10519141]
[1768750756733,0.09419303,95122.0,95109.0,0.10519141]
[1768750756925,0.02134316,95121.0,95109.0,0.10519141]
[1768750757127,0.02134316,95120.0,95109.0,0.10519141]
[1768750757321,0.02134316,95119.0,95107.0,0.010518]
[1768750757525,0.1322943,95118.0,95103.0,0.010518]
[1768750757832,0.11095114,95118.0,95103.0,0.010518]
[1768750759627,0.10519141,95120.0,95103.0,0.010518]
[1768750759826,0.02134303,95119.0,95103.0,0.010518]
[1768750760026,0.02134303,95118.0,95103.0,0.010518]
[1768750760234,0.11095114,95119.0,95103.0,0.010518]
[1768750760434,0.02134299,95118.0,95103.0,0.010518]
[1768750760628,0.11095114,95119.0,95103.0,0.010518]
[1768750760834,0.02134299,95118.0,95103.0,0.010518]
[1768750761132,0.11095114,95119.0,95103.0,0.010518]
[1768750761332,0.02134305,95118.0,95103.0,0.010518]
[1768750761532,0.11095114,95119.0,95103.0,0.010518]
[1768750761735,0.02134305,95118.0,95103.0,0.010518]
[1768750762032,0.11095114,95119.0,95103.0,0.010518]
[1768750762233,0.02134302,95118.0,95103.0,0.010518]
[1768750762436,0.11095114,95119.0,95103.0,0.010518]
[1768750762637,0.02134303,95118.0,95103.0,0.010518]
[1768750762835,0.11095114,95119.0,95103.0,0.010518]
[1768750763037,0.02134301,95118.0,95103.0,0.010518]
[1768750763232,0.11095114,95119.0,95103.0,0.010518]
[1768750763432,0.021343,95118.0,95103.0,0.010518]
[1768750763635,0.11360794,95113.0,95102.0,0.09468]
[1768750763936,0.04,95118.0,95091.0,0.09247]
[1768750763937,0.11360794,95105.0,95091.0,0.09247]
[1768750765429,0.11360794,95105.0,95094.0,0.010519]
[1768750767738,0.11360794,95105.0,95091.0,0.09247]
[1768750768338,0.11360794,95105.0,95094.0,0.010519]
[1768750768942,0.11360794,95105.0,95091.0,0.09247]
[1768750769440,0.11360794,95105.0,95094.0,0.010519]
[1768750770643,0.11360794,95105.0,95091.0,0.09247]
[1768750771545,0.11360794,95105.0,95094.0,0.010519]
[1768750771745,0.11360794,95108.0,95094.0,0.010519]
[1768750773439,0.11360794,95108.0,95091.0,0.09247]
[1768750774542,0.11360794,95108.0,95095.0,0.010519]
[1768750776946,0.11661316,95107.0,95092.0,0.010519]
[1768750777142,0.11661316,95106.0,95092.0,0.010519]
[1768750777545,0.20683329,95106.0,95092.0,0.010519]
[1768750778541,0.11661316,95105.0,95092.0,0.010519]
[1768750783152,0.09022013,95104.0,95092.0,0.010519]
[1768750783352,0.11661316,95101.0,95089.0,0.09699363]
[1768750783547,0.11661316,95100.0,95090.0,0.10519141]
[1768750784054,0.11661316,95100.0,95091.0,0.05679308]
[1768750784539,0.11661316,95100.0,95089.0,0.09699363]
[1768750784743,0.11661316,95100.0,95085.0,0.09468]
[1768750785148,0.11661316,95100.0,95085.0,0.22357635]
[1768750785938,0.11661316,95100.0,95090.0,0.10519141]
[1768750786454,0.11661316,95100.0,95092.0,0.010519]
[1768750787445,0.11661316,95100.0,95090.0,0.10519141]
[1768750788546,0.11661316,95100.0,95092.0,0.010519]
[1768750789851,0.09022013,95101.0,95092.0,0.010519]
[1768750790555,0.11661316,95104.0,95090.0,0.10519141]
[1768750790755,7.7e-07,95106.0,95090.0,0.10519141]
[1768750791147,7.7e-07,95106.0,95090.0,0.10344141]
[1768750792150,7.7e-07,95106.0,95090.0,0.09959141]
[1768750792457,7.7e-07,95106.0,95100.0,0.010518]
[1768750793057,7.7e-07,95106.0,95097.0,0.010519]
[1768750801060,7.7e-07,95106.0,95092.0,0.20806039]
[1768750801259,7.7e-07,95106.0,95094.0,0.20806039]
[1768750802567,9.2e-07,95109.0,95104.0,0.010518]
[1768750802753,0.09468,95115.0,95104.0,0.010518]
[1768750803061,0.09468,95115.0,95106.0,0.010518]
[1768750804559,0.09468,95118.0,95108.0,0.010517]
[1768750804759,0.1186475,95121.0,95108.0,0.010517]
[1768750804959,0.11674164,95120.0,95108.0,0.010517]
[1768750805158,0.02206164,95119.0,95108.0,0.010517]
[1768750806863,0.02206164,95119.0,95110.0,0.010517]
[1768750807068,0.09468,95118.0,95110.0,0.010517]
[1768750807656,0.09468,95118.0,95107.0,0.010518]
[1768750810563,0.12096016,95129.0,95110.0,0.010517]
[1768750810766,0.11673824,95123.0,95110.0,0.010517]
[1768750810968,0.02205824,95122.0,95110.0,0.010517]
[1768750813667,0.02205824,95122.0,95110.0,0.006317]
[1768750814163,0.02205824,95122.0,95106.0,0.20806039]
[1768750814360,0.02205824,95122.0,95113.0,0.010517]
[1768750815062,0.02205824,95122.0,95115.0,0.010517]
[1768750815462,0.00231266,95129.0,95110.0,0.20806039]
[1768750815664,0.09468,95128.0,95119.0,0.010516]
[1768750815964,0.12468,95128.0,95115.0,0.010517]
[1768750816163,0.09468,95128.0,95115.0,0.010517]
[1768750822365,0.12096016,95129.0,95115.0,0.010517]
[1768750822571,0.21564016,95129.0,95115.0,0.010517]
[1768750822767,0.12096016,95129.0,95115.0,0.010517]
[1768750822962,0.09468,95128.0,95115.0,0.010517]
[1768750823563,0.20312493,95128.0,95115.0,0.010517]
[1768750826473,0.10844493,95127.0,95115.0,0.010517]
[1768750827276,0.10844493,95127.0,95111.0,0.010517]
[1768750827475,0.13039817,95126.0,95111.0,0.010517]
[1768750827674,0.02195324,95125.0,95111.0,0.010517]
[1768750827864,0.02195324,95124.0,95111.0,0.010517]
[1768750828064,0.02195416,95123.0,95111.0,0.010517]
[1768750828265,0.10844493,95126.0,95111.0,0.010517]
[1768750828564,0.02195419,95125.0,95111.0,0.010517]
[1768750828765,0.02195419,95124.0,95111.0,0.010517]
[1768750828974,0.02195419,95123.0,95111.0,0.010517]
[1768750829174,0.10844493,95126.0,95111.0,0.010517]
[1768750829365,0.02195532,95125.0,95111.0,0.010517]
[1768750829567,0.02195532,95124.0,95111.0,0.010517]
[1768750829770,0.02195532,95123.0,95111.0,0.010517]
[1768750829974,0.10844493,95126.0,95111.0,0.010517]
[1768750830175,0.0219554,95125.0,95111.0,0.010517]
[1768750830376,0.0219554,95124.0,95111.0,0.010517]
[1768750830576,0.02195547,95123.0,95111.0,0.010517]
[1768750830877,0.10844493,95126.0,95111.0,0.010517]
[1768750831077,0.02195546,95125.0,95111.0,0.010517]
[1768750831278,0.02195546,95124.0,95111.0,0.010517]
[1768750831468,0.02195546,95123.0,95111.0,0.010517]
[1768750831668,0.10844493,95126.0,95111.0,0.010517]
[1768750831869,0.02195687,95125.0,95111.0,0.010517]
[1768750832070,0.02195687,95124.0,95111.0,0.010517]
[1768750832370,0.02195687,95123.0,95111.0,0.010517]
[1768750832573,0.10844493,95126.0,95111.0,0.010517]
[1768750832773,0.0219587,95125.0,95111.0,0.010517]
[1768750833077,0.0219587,95124.0,95113.0,0.010517]
[1768750833278,0.0219587,95123.0,95113.0,0.010517]
[1768750833479,0.10844493,95126.0,95113.0,0.010517]
[1768750833679,0.02195919,95125.0,95113.0,0.010517]
[1768750833979,0.02195919,95124.0,95113.0,0.010517]
[1768750834280,0.02195919,95123.0,95113.0,0.010517]
[1768750834477,0.10844493,95126.0,95113.0,0.010517]
[1768750834680,0.02184252,95125.0,95113.0,0.010517]
[1768750834882,0.02184252,95124.0,95113.0,0.010517]
[1768750835082,0.02184252,95123.0,95113.0,0.010517]
[1768750835283,0.10844493,95126.0,95113.0,0.010517]
[1768750835582,0.02184306,95125.0,95113.0,0.010517]
[1768750835782,0.02184306,95124.0,95113.0,0.010517]
[1768750835980,0.02184306,95123.0,95113.0,0.010517]
[1768750836283,0.10844493,95126.0,95113.0,0.010517]
[1768750836475,0.02184372,95125.0,95113.0,0.010517]
[1768750836676,0.02184372,95124.0,95113.0,0.010517]
[1768750836876,0.02184372,95123.0,95115.0,0.010517]
[1768750837085,0.10844493,95126.0,95115.0,0.010517]
[1768750837280,0.02184381,95125.0,95115.0,0.010517]
[1768750837474,0.02184381,95124.0,95108.0,0.09582067]
[1768750837673,0.09468,95128.0,95110.0,0.09582067]
[1768750838078,0.09468,95128.0,95119.0,0.010516]
[1768750842278,0.00231266,95129.0,95119.0,0.010516]
[1768750843581,0.11125359,95132.0,95112.0,0.11428729]
[1768750843782,0.14125359,95132.0,95122.0,0.010516]
[1768750843980,0.14125359,95132.0,95113.0,0.09582067]
[1768750844184,0.14125359,95132.0,95118.0,0.010516]
[1768750844589,0.14125359,95132.0,95113.0,0.09582067]
[1768750845488,0.14125359,95132.0,95121.0,0.010516]
[1768750846591,0.14125359,95132.0,95117.0,0.010516]
[1768750847091,0.11125359,95132.0,95117.0,0.010516]
[1768750848994,0.11125359,95132.0,95119.0,0.010516]
[1768750849790,0.0217514,95131.0,95119.0,0.010516]
[1768750849994,0.0217514,95130.0,95119.0,0.010516]
[1768750850298,0.11125359,95132.0,95119.0,0.010516]
[1768750850299,0.0217514,95129.0,95119.0,0.010516]
[1768750850498,0.11125359,95132.0,95113.0,0.09582067]
[1768750850790,0.02175093,95131.0,95122.0,0.010516]
[1768750850994,0.02175093,95130.0,95122.0,0.010516]
[1768750851189,0.02175093,95129.0,95122.0,0.010516]
[1768750851394,0.20589359,95132.0,95122.0,0.010516]
[1768750851697,0.02175034,95131.0,95122.0,0.010516]
[1768750851898,0.02175034,95130.0,95122.0,0.010516]
[1768750852087,0.02175034,95129.0,95122.0,0.010516]
[1768750852290,0.09464,95132.0,95122.0,0.010516]
[1768750852484,0.02174988,95131.0,95122.0,0.010516]
[1768750852698,0.02174988,95130.0,95122.0,0.010516]
[1768750852888,0.02174988,95129.0,95122.0,0.010516]
[1768750853088,0.09464,95132.0,95122.0,0.010516]
[1768750853289,0.02174988,95131.0,95122.0,0.010516]
[1768750853497,0.02174988,95130.0,95122.0,0.010516]
[1768750853697,0.02174988,95129.0,95122.0,0.010516]
[1768750853891,8.8e-07,95128.0,95122.0,0.010516]
[1768750854092,0.09464,95132.0,95122.0,0.010516]
[1768750854600,0.09464,95132.0,95115.0,0.11428729]
[1768750854800,0.09464,95132.0,95122.0,0.010516]
[1768750859499,0.11125359,95135.0,95115.0,0.11428729]
[1768750859500,0.11125359,95135.0,95115.0,0.20523717]
[1768750859697,0.09464,95134.0,95115.0,0.20523717]
[1768750860094,0.09464,95134.0,95116.0,0.09094988]
[1768750860500,0.09464,95134.0,95128.0,0.010515]
[1768750861411,0.11125359,95135.0,95128.0,0.010515]
[1768750861605,0.11643214,95138.0,95128.0,0.010515]
[1768750861805,0.11643214,95142.0,95130.0,0.010515]